[Event "2nd Bundesliga Nord 2024-25"]
[Site "Germany"]
[Date "2024.11.30"]
[Round "2.8"]
[White "Wickenfeld, Stefan"]
[Black "Weihrauch, Jakob"]
[Result "0-1"]
[Annotator "ChessBase"]
[ECO "E19"]
[WhiteElo "2188"]
[BlackElo "2246"]
[PlyCount "86"]
[EventDate "2024.11.29"]
[EventType "team-tourn"]
[EventCountry "GER"]
[SourceTitle "playchess.com"]
[Source "ChessBase"]
[SourceQuality "1"]
[TimeControl "40/5400+30:1800+30"]

1. d4 {[%emt 0:00:01]} Nf6 {[%emt 0:00:09]} 2. Nf3 {[%emt 0:00:05]} e6 {[%emt 0:00:06]} 3. g3 {[%emt 0:00:04]} b6 {[%emt 0:00:28]} 4. Bg2 {[%emt 0:00:07]} Bb7 {[%emt 0:00:03]} 5. O-O {[%emt 0:00:09]} Be7 {[%emt 0:00:08]} 6. c4 {[%emt 0:01:07]} O-O {[%emt 0:00:12]} 7. Nc3 {[%emt 0:00:34]} Ne4 {[%emt 0:00:06]} 8. Qc2 {[%emt 0:00:30]} Nxc3 {[%emt 0:00:06]} 9. Qxc3 {[%emt 0:00:10]} d6 {[%emt 0:00:25]} 10. Rd1 {[%emt 0:02:09]} Nd7 {[%emt 0:15:41]} 11. b4 {[%emt 0:10:12]} c5 {[%emt 0:01:42]} 12. Be3 {[%emt 0:02:01]} cxb4 {[%emt 0:05:18]} 13. Qxb4 {[%emt 0:00:22]} d5 {[%emt 0:00:21]} 14. Qa4 {[%emt 0:06:19]} Qc7 {[%emt 0:19:48]} 15. Rac1 {[%emt 0:22:28]} Bc6 {[%emt 0:04:29]} 16. Qb3 {[%emt 0:02:35]} Qb7 {[%emt 0:02:12]} 17. Ne5 {[%emt 0:00:14]} Nxe5 {[%emt 0:00:47]} 18. cxd5 {[%emt 0:00:34]} Nf3+ {[%emt 0:01:52]} 19. Bxf3 {[%emt 0:00:13]} Bxd5 {[%emt 0:00:14]} 20. Bxd5 {[%emt 0:00:16]} exd5 {[%emt 0:00:24]} 21. Rc2 {[%emt 0:01:55]} Bd6 {[%emt 0:09:47]} 22. Rdc1 {[%emt 0:00:28]} Rad8 {[%emt 0:01:10]} 23. Rc6 {[%emt 0:02:20]} Qe7 {[%emt 0:02:43]} 24. R1c2 {[%emt 0:02:15]} Rfe8 {[%emt 0:05:51]} 25. Qb5 {[%emt 0:11:01]} h6 {[%emt 0:02:07]} 26. Qxd5 {[%emt 0:10:40]} Bxg3 {[%emt 0:09:44]} 27. Qg2 {[%emt 0:01:10]} Be5 {[%emt 0:00:09]} 28. Rd2 {[%emt 0:04:27]} Qb4 {[%emt 0:00:04]} 29. Qg4 {[%emt 0:03:09]} h5 {[%emt 0:05:10]} 30. Qxh5 {[%emt 0:05:20]} Bxh2+ {[%emt 0:04:08]} 31. Kxh2 {[%emt 0:04:06]} Rxe3 {[%emt 0:00:05]} 32. fxe3 {[%emt 0:02:00]} Qxd2 {[%emt 0:00:06]} 33. Rc7 {[%emt 0:01:50]} Qxa2 {[%emt 0:00:50]} 34. e4 {[%emt 0:00:31]} g6 {[%emt 0:03:03]} 35. Qf3 {[%emt 0:00:48]} Rxd4 {[%emt 0:00:57]} 36. Rc8+ {[%emt 0:00:18]} Kg7 {[%emt 0:00:06]} 37. Rc6 {[%emt 0:00:09]} Kf8 {[%emt 0:07:37]} 38. e5 {[%emt 0:02:42]} Qd2 {[%emt 0:00:42]} 39. Rf6 {[%emt 0:01:23]} Rh4+ {[%emt 0:00:37]} 40. Kg2 {[%emt 0:00:33]} Qg5+ {[%emt 0:00:20]} 41. Kf1 {[%emt 0:30:43]} Qc1+ {[%emt 0:30:35]} 42. Kg2 {[%emt 0:00:36]} Qh1+ {[%emt 0:00:12]} 43. Kg3 {[%emt 0:00:05]} Qh2# {[%emt 0:01:26]} 0-1

[Event "2nd Bundesliga Nord 2024-25"]
[Site "Germany"]
[Date "2024.11.30"]
[Round "2.9"]
[White "Fromm, Marius"]
[Black "Lutz, Christopher"]
[Result "0-1"]
[Annotator "ChessBase"]
[ECO "B82"]
[WhiteElo "2452"]
[BlackElo "2524"]
[PlyCount "62"]
[EventDate "2024.11.29"]
[EventType "team-tourn"]
[EventCountry "GER"]
[SourceTitle "playchess.com"]
[Source "ChessBase"]
[SourceQuality "1"]
[TimeControl "40/5400+30:1800+30"]

1. e4 {[%emt 0:00:04]} c5 {[%emt 0:00:09]} 2. Nf3 {[%emt 0:00:05]} e6 {[%emt 0:00:15]} 3. d4 {[%emt 0:00:04]} cxd4 {[%emt 0:00:08]} 4. Nxd4 {[%emt 0:00:04]} Nc6 {[%emt 0:00:19]} 5. Nc3 {[%emt 0:00:05]} Qc7 {[%emt 0:00:42]} 6. Be3 {[%emt 0:00:08]} a6 {[%emt 0:00:23]} 7. a3 {[%emt 0:00:11]} Nf6 {[%emt 0:08:28]} 8. f4 {[%emt 0:01:20]} d6 {[%emt 0:01:30]} 9. Qf3 {[%emt 0:01:18]} Bd7 {[%emt 0:09:26]} 10. O-O-O {[%emt 0:04:09]} Rc8 {[%emt 0:00:25]} 11. Kb1 {[%emt 0:07:11]} Nxd4 {[%emt 0:11:36]} 12. Rxd4 {[%emt 0:00:45]} b5 {[%emt 0:00:13]} 13. Be2 {[%emt 0:20:11]} Be7 {[%emt 0:15:35]} 14. Rhd1 {[%emt 0:32:10]} Bc6 {[%emt 0:00:29]} 15. g4 {[%emt 0:02:03]} d5 {[%emt 0:15:40]} 16. e5 {[%emt 0:00:52]} Nd7 {[%emt 0:03:04]} 17. Qg3 {[%emt 0:07:20]} Rb8 {[%emt 0:01:27]} 18. f5 {[%emt 0:03:44]} b4 {[%emt 0:01:13]} 19. axb4 {[%emt 0:01:29]} Bxb4 {[%emt 0:00:54]} 20. Bf4 {[%emt 0:04:57]} O-O {[%emt 0:11:19]} 21. g5 {[%emt 0:04:22]} Qb6 {[%emt 0:01:48]} 22. b3 {[%emt 0:00:32]} g6 {[%emt 0:06:16]} 23. fxe6 {[%emt 0:01:02]} fxe6 {[%emt 0:00:06]} 24. Bg4 {[%emt 0:00:26]} Nc5 {[%emt 0:00:30]} 25. Na2 {[%emt 0:02:47]} a5 {[%emt 0:00:19]} 26. Nxb4 {[%emt 0:02:06]} axb4 {[%emt 0:00:07]} 27. Be3 {[%emt 0:00:52]} Ra8 {[%emt 0:07:33]} 28. Rf4 {[%emt 0:00:20]} Rfe8 {[%emt 0:01:46]} 29. Bd4 {[%emt 0:02:36]} Bd7 {[%emt 0:00:57]} 30. Qh3 {[%emt 0:01:19]} Qa6 {[%emt 0:00:36]} 31. Rdf1 {[%emt 0:00:54]} Rec8 {[%emt 0:00:45]} 0-1

[Event "2nd Bundesliga Nord 2024-25"]
[Site "Germany"]
[Date "2024.11.30"]
[Round "2.10"]
[White "Rotstein, Arkadij"]
[Black "Olsen, Filip Boe"]
[Result "0-1"]
[Annotator "ChessBase"]
[ECO "A06"]
[WhiteElo "2432"]
[BlackElo "2470"]
[PlyCount "78"]
[EventDate "2024.11.29"]
[EventType "team-tourn"]
[EventCountry "GER"]
[SourceTitle "playchess.com"]
[Source "ChessBase"]
[SourceQuality "1"]
[TimeControl "40/5400+30:1800+30"]

1. Nf3 {[%emt 0:00:04]} d5 {[%emt 0:00:27]} 2. e3 {[%emt 0:00:14]} Nf6 {[%emt 0:00:18]} 3. b3 {[%emt 0:00:14]} e6 {[%emt 0:01:10]} 4. Bb2 {[%emt 0:00:11]} b6 {[%emt 0:01:23]} 5. g3 {[%emt 0:01:32]} Bb7 {[%emt 0:00:47]} 6. Bg2 {[%emt 0:00:09]} Nbd7 {[%emt 0:00:22]} 7. O-O {[%emt 0:00:14]} Bd6 {[%emt 0:01:19]} 8. c4 {[%emt 0:00:43]} a6 {[%emt 0:06:59]} 9. Nc3 {[%emt 0:02:02]} dxc4 {[%emt 0:06:15]} 10. bxc4 {[%emt 0:01:53]} e5 {[%emt 0:02:34]} 11. d4 {[%emt 0:04:14]} exd4 {[%emt 0:02:46]} 12. Qxd4 {[%emt 0:10:07]} O-O {[%emt 0:08:04]} 13. Nd5 {[%emt 0:04:36]} Re8 {[%emt 0:07:11]} 14. Rad1 {[%emt 0:04:41]} b5 {[%emt 0:10:18]} 15. Nh4 {[%emt 0:18:45]} Bxd5 {[%emt 0:06:21]} 16. cxd5 {[%emt 0:00:17]} Nb6 {[%emt 0:09:10]} 17. Qd3 {[%emt 0:04:54]} Nc4 {[%emt 0:04:10]} 18. Bd4 {[%emt 0:02:44]} Be5 {[%emt 0:04:38]} 19. Bxe5 {[%emt 0:04:09]} Rxe5 {[%emt 0:02:17]} 20. Qd4 {[%emt 0:02:14]} Qd6 {[%emt 0:06:26]} 21. e4 {[%emt 0:02:48]} Rae8 {[%emt 0:01:16]} 22. Rfe1 {[%emt 0:07:31]} Qb4 {[%emt 0:02:12]} 23. a3 {[%emt 0:15:37]} Qa5 {[%emt 0:01:32]} 24. Qc5 {[%emt 0:04:01]} Rxd5 {[%emt 0:03:30]} 25. Qc6 {[%emt 0:01:01]} Rd6 {[%emt 0:02:47]} 26. Qb7 {[%emt 0:01:10]} Nb2 {[%emt 0:04:49]} 27. Rb1 {[%emt 0:01:25]} Nd3 {[%emt 0:00:16]} 28. Re2 {[%emt 0:02:26]} g6 {[%emt 0:01:20]} 29. Rc2 {[%emt 0:01:17]} c5 {[%emt 0:00:29]} 30. Nf3 {[%emt 0:01:49]} Rd7 {[%emt 0:01:38]} 31. Qc6 {[%emt 0:00:14]} Re6 {[%emt 0:00:05]} 32. Qa8+ {[%emt 0:01:19]} Rd8 {[%emt 0:00:02]} 33. Rxb5 {[%emt 0:00:18]} Qxb5 {[%emt 0:02:29]} 34. Qxd8+ {[%emt 0:00:04]} Re8 {[%emt 0:00:08]} 35. Qxf6 {[%emt 0:00:17]} Qb1+ {[%emt 0:00:06]} 36. Bf1 {[%emt 0:00:14]} Qxc2 {[%emt 0:00:05]} 37. Ng5 {[%emt 0:00:43]} Ne5 {[%emt 0:00:25]} 38. Bxa6 {[%emt 0:02:37]} h6 {[%emt 0:01:04]} 39. Nh3 {[%emt 0:00:41]} Qxe4 {[%emt 0:01:21]} 0-1

[Event "2nd Bundesliga Nord 2024-25"]
[Site "Germany"]
[Date "2024.11.30"]
[Round "2.11"]
[White "Pajeken, Jakob Leon"]
[Black "Suvorov, Alexander"]
[Result "1/2-1/2"]
[Annotator "TA"]
[ECO "B07"]
[WhiteElo "2417"]
[BlackElo "2356"]
[PlyCount "101"]
[EventDate "2024.11.29"]
[EventType "team-tourn"]
[EventCountry "GER"]
[SourceTitle "playchess.com"]
[Source "ChessBase"]
[SourceQuality "1"]
[TimeControl "40/5400+30:1800+30"]

{[%evp 9,101,40,55,53,62,51,100,74,80,59,152,85,79,102,86,90,81,90,96,91,106,18,13,8,12,10,1,0,36,0,8,10,35,46,36,4,47,-12,12,-25,21,10,81,28,61,60,267,273,261,265,266,256,275,269,264,187,226,189,188,212,206,195,210,214,204,185,208,162,228,150,162,150,162,150,209,150,162,150,162,156,191,183,187,168,177,141,141,141,141,141,141,141,141,141]} 1. e4 {[%emt 0:00:19]} g6 {[%emt 0:01:10]} 2. d4 {[%emt 0:00:47]} Bg7 {[%emt 0:00:17]} 3. Nc3 {[%emt 0:00:05]} d6 {[%emt 0:00:51]} 4. Be3 {[%emt 0:00:27]} Nf6 {[%emt 0:06:13]} 5. f3 {[%emt 0:00:32]} a6 {[%emt 0:03:30]} 6. Qd2 {[%emt 0:00:31]} Nbd7 {[%emt 0:11:33][%cal Bb8d7,Bd7e5,Be5c6][%mdl 32]} 7. g4 {[%emt 0:12:39][%cal Bg2g4,Bg4g5][%mdl 32]} e5 {[%emt 0:10:47]} (7... b5 $14) 8. dxe5 {[%emt 0:11:52] White is better.} Nxe5 {[%emt 0:03:16]} 9. O-O-O {[%emt 0:05:54]} h5 {[%emt 0:08:29]} (9... O-O $14) 10. Bg5 {[%emt 0:06:09]} (10. g5 $142 Ng8 11. Bd4) 10... Qd7 $16 {[%emt 0:23:39]} 11. Bxf6 {[%emt 0:07:26]} Bxf6 {[%emt 0:00:17]} 12. g5 {[%emt 0:03:54]} Bg7 {[%emt 0:03:25]} 13. f4 {[%emt 0:01:16]} Nc6 {[%emt 0:00:30]} 14. Nd5 {[%emt 0:04:02]} Qd8 {[%emt 0:03:12]} 15. Bh3 {[%emt 0:03:28]} (15. Re1 $16) 15... Bxh3 $11 {[%emt 0:04:03]} 16. Nxh3 {[%emt 0:00:13]} Qd7 {[%emt 0:02:04]} 17. f5 {[%emt 0:03:23]} O-O-O {[%emt 0:01:13]} 18. Rhf1 {[%emt 0:00:49][%cal Of5f6,Bh1f1,Bf1f3,Bf3b3][%mdl 32]} Be5 {[%emt 0:02:44]} 19. Rf3 {[%emt 0:01:47]} (19. Kb1 {simplifies} Ne7 20. Nhf4 Bxf4 21. Rxf4 Nxd5 22. exd5 Rde8 23. fxg6 fxg6 24. Rf6) 19... Ne7 {[%emt 0:05:22]} 20. Nhf4 {[%emt 0:04:26]} Nxd5 {[%emt 0:01:07]} (20... Kb8 {simplifies} 21. Nxe7 Bxf4 22. Rxf4 Qxe7 23. h4 Qe5) 21. Nxd5 {[%emt 0:02:29]} Kb8 {[%emt 0:03:29][%cal Bc8b8,Bb8a8,Ba8a7][%mdl 32]} 22. Rb3 {[%emt 0:03:33]} Qa4 {[%emt 0:00:59] Against Qa5} (22... gxf5 {simplifies} 23. exf5 c6 24. Nb4 Ka8) 23. Re1 {[%emt 0:16:14]} ({White should try} 23. Kb1 $1 $14) 23... Rhe8 {[%emt 0:00:40]} ({Much weaker is} 23... Qxa2 $6 24. Qb4 b5 25. Ra3 $14) (23... c6 $5 24. Ne7 Rd7 $11) 24. f6 {[%emt 0:01:39]} Re6 {[%emt 0:01:25]} (24... c6 $142 25. Ne7 Qc4) 25. Kb1 {[%emt 0:00:57]} Rde8 {[%emt 0:01:22]} (25... Qc4 $11 {remains equal.}) 26. Ne7 {[%emt 0:00:54] White is more active.} ({White should play} 26. h4 $16) 26... Ka8 {[%emt 0:00:10]} 27. a3 $40 {[%emt 0:01:08][%cal Oe7g6][%mdl 128] White mounts an attack.} Qc4 $2 {[%emt 0:00:31] [#] Loses the game.} (27... Qd4 $14 28. Qe2 R8xe7 29. fxe7 Bg7) 28. Qd5 $18 {[%emt 0:00:27]} Qxd5 {[%emt 0:00:58]} 29. exd5 {[%emt 0:00:06]} R8xe7 {[%emt 0:00:16]} 30. fxe7 {[%emt 0:00:48]} ({Less strong is} 30. dxe6 Rxe6 31. Rbe3 b6 $16) 30... Rxe7 {[%emt 0:00:01][%mdl 4096] Endgame. KRR-KRB} 31. Rf3 {[%emt 0:00:39]} Ka7 {[%emt 0:01:05]} 32. c4 {[%emt 0:01:53]} a5 {[%emt 0:00:47] White is clearly better.} 33. b3 {[%emt 0:00:53]} Kb6 {[%emt 0:00:23]} 34. Kc2 {[%emt 0:01:12]} c6 {[%emt 0:00:37]} 35. dxc6 {[%emt 0:01:22]} Kxc6 {[%emt 0:00:29]} 36. h3 {[%emt 0:00:25][%cal Bh2h3,Bh3h4][%mdl 32]} Kd7 {[%emt 0:00:12]} 37. Kd3 {[%emt 0:00:36]} b6 {[%emt 0:00:50]} 38. Re2 {[%emt 0:00:55]} Ke6 {[%emt 0:00:37]} (38... Ke8 $142 39. Ref2 Ba1) 39. h4 {[%emt 0:01:25][%cal Oe2e5] aiming for Rxe5+!} Kd7 {[%emt 0:00:47]} 40. Re4 {[%emt 0:00:30]} Ke8 {[%emt 0:00:36]} 41. Re1 {[%emt 0:30:54]} Kd7 {[%emt 0:02:00]} (41... Bb2 $16 42. Rfe3 Rxe3+ 43. Rxe3+ Kd7) 42. Re2 {[%emt 0:00:00]} Ke8 {[%emt 0:00:26]} 43. Ref2 {[%emt 0:00:00]} Kf8 {[%emt 0:00:38]} 44. Rf1 {[%emt 0:00:00]} Bb2 {[%emt 0:00:59]} 45. a4 {[%emt 0:00:00]} Ke8 {[%emt 0:09:43]} 46. Rb1 {[%emt 0:00:00]} Ba3 {[%emt 0:01:03]} 47. Re3 {[%emt 0:00:00]} Rxe3+ {[%emt 0:01:40]} 48. Kxe3 {[%emt 0:00:00] Strongly threatening Ke4.} Ke7 {[%emt 0:00:04]} 49. Ke4 {[%emt 0:00:00]} Ke6 {[%emt 0:00:10]} 50. Rd1 {[%emt 0:00:00]} Bb4 {[%emt 0:08:36]} 51. Rf1 {[%emt 0:00:00] Weighted Error Value: White=0.22 (precise) /Black=0.26 (precise) .  Loses game:     	---       	Black=1      Mistake:       	White=4     	Black=6      Inaccurate:     	White=4     	Black=3      OK:         	White=14    	Black=12     Best:        	White=1     	Black=4} 1/2-1/2

[Event "2nd Bundesliga Nord 2024-25"]
[Site "Germany"]
[Date "2024.11.30"]
[Round "2.12"]
[White "Suvorov, Luca"]
[Black "Arndt, Magnus"]
[Result "1-0"]
[Annotator "ChessBase"]
[ECO "E46"]
[WhiteElo "2388"]
[BlackElo "2388"]
[PlyCount "93"]
[EventDate "2024.11.29"]
[EventType "team-tourn"]
[EventCountry "GER"]
[SourceTitle "playchess.com"]
[Source "ChessBase"]
[SourceQuality "1"]
[TimeControl "40/5400+30:1800+30"]

1. d4 {[%emt 0:00:02]} Nf6 {[%emt 0:00:11]} 2. c4 {[%emt 0:00:51]} e6 {[%emt 0:00:10]} 3. Nc3 {[%emt 0:03:14]} Bb4 {[%emt 0:00:11]} 4. e3 {[%emt 0:00:27]} O-O {[%emt 0:01:40]} 5. Nge2 {[%emt 0:01:36]} Re8 {[%emt 0:01:00]} 6. a3 {[%emt 0:00:33]} Bf8 {[%emt 0:01:31]} 7. Ng3 {[%emt 0:00:59]} d5 {[%emt 0:01:05]} 8. Be2 {[%emt 0:04:31]} b6 {[%emt 0:01:29]} 9. cxd5 {[%emt 0:02:17]} exd5 {[%emt 0:00:26]} 10. O-O {[%emt 0:00:50]} a5 {[%emt 0:03:59]} 11. Nh5 {[%emt 0:17:04]} Nxh5 {[%emt 0:18:29]} 12. Bxh5 {[%emt 0:00:18]} c6 {[%emt 0:00:41]} 13. Bf3 {[%emt 0:07:46]} Bf5 {[%emt 0:12:45]} 14. Re1 {[%emt 0:04:32]} Ra7 {[%emt 0:07:07]} 15. Bd2 {[%emt 0:08:58]} Rd7 {[%emt 0:14:10]} 16. Rc1 {[%emt 0:10:43]} Rd6 {[%emt 0:07:53]} 17. g3 {[%emt 0:09:02]} Nd7 {[%emt 0:01:52]} 18. Bg2 {[%emt 0:04:39]} b5 {[%emt 0:05:00]} 19. a4 {[%emt 0:10:33]} b4 {[%emt 0:02:33]} 20. Ne2 {[%emt 0:00:02]} g5 {[%emt 0:01:47]} 21. h3 {[%emt 0:04:45]} h5 {[%emt 0:05:08]} 22. g4 {[%emt 0:01:09]} Bg6 {[%emt 0:02:53]} 23. Ng3 {[%emt 0:00:48]} h4 {[%emt 0:05:31]} 24. Nf5 {[%emt 0:00:27]} Bxf5 {[%emt 0:01:55]} 25. gxf5 {[%emt 0:00:02]} Nf6 {[%emt 0:00:15]} 26. Rf1 {[%emt 0:06:42]} Ne4 {[%emt 0:01:24]} 27. Be1 {[%emt 0:00:28]} Rh6 {[%emt 0:01:31]} 28. Qg4 {[%emt 0:00:25]} Kh8 {[%emt 0:00:35]} 29. Kh1 {[%emt 0:00:40]} Bg7 {[%emt 0:01:02]} 30. Rg1 {[%emt 0:00:28]} Nf6 {[%emt 0:00:43]} 31. Qxg5 {[%emt 0:00:28]} Rh5 {[%emt 0:00:21]} 32. Qf4 {[%emt 0:00:03]} Qd7 {[%emt 0:00:11]} 33. Bf3 {[%emt 0:00:34]} Bh6 {[%emt 0:00:39]} 34. Qh2 {[%emt 0:00:39]} Rxf5 {[%emt 0:00:42]} 35. Bg4 {[%emt 0:00:15]} Nxg4 {[%emt 0:00:22]} 36. hxg4 {[%emt 0:00:57]} Rf3 {[%emt 0:00:23]} 37. Qxh4 {[%emt 0:00:31]} Kg7 {[%emt 0:00:10]} 38. Kg2 {[%emt 0:00:36]} Rf6 {[%emt 0:01:07]} 39. g5 {[%emt 0:00:16]} Rg6 {[%emt 0:00:30]} 40. Kf1 {[%emt 0:00:21]} Bxg5 {[%emt 0:00:30]} 41. Rxg5 {[%emt 0:30:48]} Rh8 {[%emt 0:30:29]} 42. Rxg6+ {[%emt 0:00:00]} fxg6 {[%emt 0:00:00]} 43. Qg3 {[%emt 0:00:00]} Rh3 {[%emt 0:00:00]} 44. Qe5+ {[%emt 0:00:00]} Kh7 {[%emt 0:00:00]} 45. Ke2 {[%emt 0:00:00]} Rh1 {[%emt 0:00:00]} 46. Qf6 {[%emt 0:00:00]} Qh3 {[%emt 0:00:00]} 47. Kd2 {[%emt 0:00:00]} 1-0

[Event "2nd Bundesliga Nord 2024-25"]
[Site "Germany"]
[Date "2024.11.30"]
[Round "2.13"]
[White "Ermitsch, Magnus"]
[Black "Korotkjevich, Stanislav"]
[Result "0-1"]
[Annotator "TA"]
[ECO "B32"]
[WhiteElo "2399"]
[BlackElo "2360"]
[PlyCount "74"]
[EventDate "2024.11.29"]
[EventType "team-tourn"]
[EventCountry "GER"]
[SourceTitle "playchess.com"]
[Source "ChessBase"]
[SourceQuality "1"]
[TimeControl "40/5400+30:1800+30"]

{[%evp 16,74,20,24,25,32,27,31,35,42,42,30,48,50,51,40,50,43,48,40,43,0,0,0,41,-20,-17,-22,-14,-14,-18,-16,-17,-18,0,-14,0,-11,0,-197,-88,-318,-302,-324,-336,-418,-418,-406,-395,-387,-304,-451,-456,-508,-484,-515,-498,-570,-565,-2527,-1998]} 1. e4 {[%emt 0:00:03]} c5 {[%emt 0:00:04]} 2. Nf3 {[%emt 0:00:46]} Nc6 {[%emt 0:00:04]} 3. d4 {[%emt 0:00:07]} cxd4 {[%emt 0:00:03]} 4. Nxd4 {[%emt 0:00:06]} e5 {[%emt 0:00:04]} 5. Nb5 {[%emt 0:00:09]} d6 {[%emt 0:00:05]} 6. c4 {[%emt 0:00:18]} Be7 {[%emt 0:00:48]} 7. N1c3 {[%emt 0:00:07]} a6 {[%emt 0:00:09]} 8. Na3 {[%emt 0:00:08]} Be6 {[%emt 0:00:33]} 9. Nc2 {[%emt 0:00:43]} Nf6 {[%emt 0:04:00]} 10. Be2 {[%emt 0:01:01]} O-O {[%emt 0:01:21]} 11. O-O {[%emt 0:00:54]} Rc8 {[%emt 0:00:49] White is slightly better.} 12. Be3 {[%emt 0:00:26]} Na5 {[%emt 0:06:24]} 13. b3 {[%emt 0:01:04][%cal Bb2b3,Bb3b4][%mdl 32]} b5 {[%emt 0:00:24][%cal Rb5c4]} 14. Nd5 {[%emt 0:00:23]} Bxd5 {[%emt 0:03:15]} (14... bxc4 $2 15. Bb6 Qd7 16. Bxa5 $18) 15. exd5 {[%emt 0:00:25]} bxc4 {[%emt 0:00:35]} 16. b4 {[%emt 0:00:28]} Nb7 {[%emt 0:00:17]} 17. Na3 {[%emt 0:01:46][%mdl 1024] White has compensation.} a5 {[%emt 0:01:33]} 18. b5 {[%emt 0:22:06]} (18. Nxc4 {simplifies} axb4 19. Rb1 Nc5 20. Rxb4 Nfd7 21. a4) 18... c3 {[%emt 0:02:48]} 19. Rc1 {[%emt 0:01:54][%cal Ba1c1,Bc1c3,Bc3h3][%mdl 32]} Ne4 {[%emt 0:05:05]} 20. Bd3 {[%emt 0:09:56]} ({Better is} 20. Bg4 $14 Rb8 21. Bf5) 20... Nbc5 $11 {[%emt 0:02:12]} 21. Bxc5 {[%emt 0:14:07]} Nxc5 {[%emt 0:00:12]} 22. Rxc3 {[%emt 0:01:06]} e4 {[%emt 0:00:14]} 23. Be2 {[%emt 0:02:00]} f5 {[%emt 0:00:42]} 24. Nc4 {[%emt 0:04:57]} Bf6 {[%emt 0:01:28]} 25. Rh3 {[%emt 0:01:22]} g6 {[%emt 0:07:12]} 26. Qd2 {[%emt 0:02:20]} a4 {[%emt 0:00:47]} 27. f3 $2 {[%emt 0:06:36] [#]} (27. Rb1 $11 {and White has nothing to worry.}) 27... Qe7 {[%emt 0:01:51]} (27... Nd3 $1 $19 28. fxe4 (28. Bxd3 $2 exd3 29. Qxd3 Qc7 $19) 28... Bd4+ (28... Rxc4 $2 {loses.} 29. Bxd3 Rd4 30. exf5 $18) 29. Kh1 (29. Ne3 $2 fxe4 30. Bxd3 exd3 $19) 29... Nf2+ 30. Rxf2 Bxf2 31. exf5 Rxf5) 28. fxe4 $2 {[%emt 0:06:09] Loses the game.} (28. Kh1 $17) 28... Nxe4 $19 {[%emt 0:00:27]} 29. Qd3 {[%emt 0:01:29]} Rfe8 {[%emt 0:03:37][%cal Oc8c4] aiming for ...Rxc4!} 30. b6 {[%emt 0:15:54] [#]} Nc5 $1 {[%emt 0:00:57][%csl LRd3,LRe2]} 31. Qd1 {[%emt 0:01:19]} Qxe2 {[%emt 0:01:34]} 32. Nxd6 {[%emt 0:00:05]} Qa6 {[%emt 0:01:31]} 33. Nxc8 {[%emt 0:04:41]} (33. Kh1 {was worth a try.}) 33... Rxc8 {[%emt 0:00:05] Black is clearly winning.} 34. d6 {[%emt 0:01:01]} Qxb6 {[%emt 0:00:24]} 35. Kh1 {[%emt 0:00:35]} Rd8 {[%emt 0:00:43]} 36. Qd5+ {[%emt 0:00:54]} Kg7 {[%emt 0:00:22]} 37. Rd1 {[%emt 0:01:01]} Ne4 {[%emt 0:00:13] Weighted Error Value: White=0.65/Black=0.18 (very precise) .  Loses game:     	White=2     	---        Mistake:       	White=2     	Black=1      Inaccurate:     	White=2     	Black=1      OK:         	White=12    	Black=10     Best:        	White=1     	Black=4      Strong:       	---       	Black=1} 0-1

[Event "2nd Bundesliga Nord 2024-25"]
[Site "Germany"]
[Date "2024.11.30"]
[Round "2.14"]
[White "Gallasch, Jonas"]
[Black "Kopylov, Daniel"]
[Result "0-1"]
[Annotator "ChessBase"]
[ECO "A34"]
[WhiteElo "2301"]
[BlackElo "2369"]
[PlyCount "80"]
[EventDate "2024.11.29"]
[EventType "team-tourn"]
[EventCountry "GER"]
[SourceTitle "playchess.com"]
[Source "ChessBase"]
[SourceQuality "1"]
[TimeControl "40/5400+30:1800+30"]

1. Nf3 {[%emt 0:00:06]} c5 {[%emt 0:01:20]} 2. c4 {[%emt 0:00:14]} Nf6 {[%emt 0:00:10]} 3. Nc3 {[%emt 0:00:09]} d5 {[%emt 0:00:08]} 4. cxd5 {[%emt 0:00:26]} Nxd5 {[%emt 0:00:06]} 5. e3 {[%emt 0:00:22]} Nxc3 {[%emt 0:00:59]} 6. dxc3 {[%emt 0:01:13]} Qc7 {[%emt 0:02:33]} 7. e4 {[%emt 0:00:15]} Nc6 {[%emt 0:00:14]} 8. Be3 {[%emt 0:00:21]} e6 {[%emt 0:03:57]} 9. Nd2 {[%emt 0:02:21]} Be7 {[%emt 0:02:26]} 10. Qg4 {[%emt 0:01:21]} O-O {[%emt 0:00:59]} 11. Qg3 {[%emt 0:00:06]} Bd6 {[%emt 0:02:09]} 12. f4 {[%emt 0:00:07]} Rd8 {[%emt 0:06:36]} 13. Bc4 {[%emt 0:17:38]} a6 {[%emt 0:17:09]} 14. a4 {[%emt 0:02:00]} Rb8 {[%emt 0:00:37]} 15. O-O {[%emt 0:02:17]} b5 {[%emt 0:01:23]} 16. axb5 {[%emt 0:01:28]} axb5 {[%emt 0:00:08]} 17. Be2 {[%emt 0:00:32]} c4 {[%emt 0:01:38]} 18. Nf3 {[%emt 0:11:54]} e5 {[%emt 0:11:56]} 19. f5 {[%emt 0:03:29]} f6 {[%emt 0:07:24]} 20. Qf2 {[%emt 0:06:59]} Na5 {[%emt 0:01:22]} 21. Nd2 {[%emt 0:09:50]} Nb7 {[%emt 0:02:15]} 22. b4 {[%emt 0:03:24]} Qc6 {[%emt 0:05:10]} 23. Qh4 {[%emt 0:11:49]} Bc7 {[%emt 0:03:05]} 24. Rf3 {[%emt 0:00:42]} Bb6 {[%emt 0:03:12]} 25. Nf1 {[%emt 0:00:07]} Nd6 {[%emt 0:03:48]} 26. Rh3 {[%emt 0:04:10]} h6 {[%emt 0:02:21]} 27. Rg3 {[%emt 0:05:58]} Qxe4 {[%emt 0:12:01]} 28. Qxf6 {[%emt 0:12:06]} Nxf5 {[%emt 0:01:36]} 29. Bxb6 {[%emt 0:01:06]} Rf8 {[%emt 0:00:31]} 30. Qxf8+ {[%emt 0:02:15]} Kxf8 {[%emt 0:00:17]} 31. Bf3 {[%emt 0:00:04]} Qc2 {[%emt 0:03:23]} 32. Bc5+ {[%emt 0:01:08]} Kg8 {[%emt 0:00:46]} 33. Bd5+ {[%emt 0:00:10]} Kh7 {[%emt 0:01:27]} 34. Rf3 {[%emt 0:00:38]} Bb7 {[%emt 0:01:45]} 35. Bxb7 {[%emt 0:00:39]} Rxb7 {[%emt 0:00:08]} 36. Re1 {[%emt 0:00:13]} Nh4 {[%emt 0:00:50]} 37. Rg3 {[%emt 0:00:29]} Rf7 {[%emt 0:00:27]} 38. h3 {[%emt 0:00:53]} Rf4 {[%emt 0:00:41]} 39. Rxe5 {[%emt 0:00:28]} Qc1 {[%emt 0:00:40]} 40. Bf2 {[%emt 0:00:12]} Rxf2 {[%emt 0:00:16]} 0-1